bitfinex-derivatives/quotes_ETHF0:USTF0_20240904
["timestamp","ask_amount","ask_price","bid_price","bid_amount"]
[1725446587074,0.00625795,2395.5,2395.4,15.59379]
[1725446587373,0.00625795,2395.5,2395.4,17.0291]
[1725446591283,0.00625795,2395.5,2395.4,9.98539]
[1725446591484,0.00625795,2395.5,2395.4,6.38539]
[1725446591783,0.00625795,2395.5,2395.4,5.99379]
[1725446592770,0.42372795,2395.5,2395.4,0.77568]
[1725446593879,1.46739795,2395.5,2395.4,0.77568]
[1725446594082,0.4175,2395.3,2395.2,0.7899]
[1725446595182,1.04376,2395.3,2395.0,3.5852]
[1725446595474,0.3733,2395.4,2395.0,3.2078]
[1725446595475,0.41753,2395.1,2395.0,3.2078]
[1725446596274,0.3733,2395.4,2394.7,0.4176]
[1725446596275,1.04389,2395.0,2394.7,0.4176]
[1725446596577,1.04389,2395.0,2394.6,3.2078]
[1725446596578,0.4176,2394.7,2394.6,3.2078]
[1725446596784,1.46162,2394.7,2394.6,3.2078]
[1725446597277,5.63762,2394.7,2394.6,3.2078]
[1725446597586,15.23762,2394.7,2394.6,3.2078]
[1725446597786,16.28164,2394.7,2394.6,2.97267629]
[1725446598788,18.02782,2394.7,2394.0,0.097]
[1725446598976,0.41775,2393.9,2393.7,0.097]
[1725446599173,0.41776,2393.8,2393.6,0.3807]
[1725446599692,0.00625795,2394.0,2393.3,0.3622]
[1725446599693,0.41775,2393.9,2393.3,0.3622]
[1725446599978,0.41775,2393.9,2393.4,0.41782]
[1725446600189,3.21405795,2394.0,2393.3,0.3622]
[1725446600382,0.41783,2393.4,2393.2,0.3807]
[1725446600583,0.41785,2393.3,2392.9,3.2078]
[1725446600880,0.41785,2393.3,2392.7,0.097]
[1725446600881,0.41793,2392.9,2392.7,0.097]
[1725446601077,0.41793,2392.9,2392.2,3.72284]
[1725446601078,3.6,2392.9,2392.2,3.72284]
[1725446601280,6.8078,2392.5,2391.9,3.3048]
[1725446601476,0.41808,2392.0,2391.6,0.097]
[1725446601673,3.6,2392.1,2391.2,3.6]
[1725446601674,4.01811,2391.8,2391.3,0.097]
[1725446601881,6.8078,2391.8,2391.2,3.2078]
[1725446602087,0.41816,2391.5,2391.2,3.2078]
[1725446602384,3.6,2391.6,2390.8,0.41827]
[1725446602385,4.02442117,2391.6,2390.9,0.41826]
[1725446602581,3.2078,2391.5,2390.8,3.2078]
[1725446602781,0.00627117,2391.6,2391.2,0.4182]
[1725446602978,0.00627117,2391.6,2391.2,3.6]
[1725446603184,0.00627117,2391.6,2391.3,0.4182]
[1725446603377,0.00627117,2391.6,2391.2,3.6]
[1725446603577,0.00627117,2391.6,2391.3,0.41819]
[1725446604081,0.00627117,2391.6,2391.5,0.41816]
[1725446604781,0.097,2392.3,2391.5,13.7816]
[1725446604994,0.097,2392.5,2392.2,3.6]
[1725446605176,3.2078,2392.5,2392.1,4.01806]
[1725446605573,3.2078,2392.5,2392.3,0.41802]
[1725446605886,3.2078,2392.5,2392.3,7.78]
[1725446606074,3.2078,2392.5,2392.4,0.41801]
[1725446606274,0.00627117,2392.6,2392.3,9.41801]
[1725446606582,0.00627117,2392.6,2392.4,0.418]
[1725446607188,0.00627117,2392.6,2392.5,0.41799]
[1725446608191,0.00627117,2392.6,2392.5,4.59799]
[1725446608784,0.00627117,2392.6,2392.5,0.41799]
[1725446609082,0.00627117,2392.6,2392.5,4.59799]
[1725446609292,0.00627117,2392.6,2392.4,0.41801]
[1725446609485,0.00627117,2392.6,2392.5,0.41799]
[1725446610884,1.17e-06,2392.6,2392.5,9.41799]
[1725446611092,1.17e-06,2392.6,2392.5,16.46297]
[1725446615891,1.17e-06,2392.6,2392.5,19.67077]
[1725446616679,1.17e-06,2392.6,2392.5,20.71575]
[1725446619386,1.17e-06,2392.6,2392.5,13.67077]
[1725446619983,1.17e-06,2392.6,2392.5,14.71575]
[1725446620187,1.17e-06,2392.6,2392.5,20.71575]
[1725446620384,1.17e-06,2392.6,2392.5,9.89575]
[1725446620585,1.17e-06,2392.6,2392.5,20.71575]
[1725446621795,1.17e-06,2392.6,2392.5,14.71575]
[1725446621992,1.17e-06,2392.6,2392.5,20.71575]
[1725446624886,1.17e-06,2392.6,2392.5,22.80571]
[1725446625091,1.17e-06,2392.6,2392.5,20.71575]
[1725446625392,0.097,2393.3,2393.2,0.41787]
[1725446625593,7.3248,2393.5,2393.4,0.41783]
[1725446625892,4.117,2393.5,2393.4,5.07242]
[1725446626199,4.117,2393.5,2393.4,4.02783]
[1725446626789,4.117,2393.5,2393.4,5.07242]
[1725446627200,4.117,2393.5,2393.4,4.02783]
[1725446627707,4.117,2393.5,2393.4,0.41783]
[1725446627993,9.33996,2393.5,2393.0,6.8178]
[1725446628192,9.33996,2393.5,2392.8,3.61]
[1725446628193,1.04459,2393.4,2392.8,3.61]
[1725446628397,0.41787,2393.2,2393.0,0.41789]
[1725446628901,0.79797,2393.2,2393.0,0.41789]
[1725446629400,0.41788,2393.1,2393.0,0.41789]
[1725446629612,4.5585,2393.2,2392.7,3.2078]
[1725446629797,4.5585,2393.2,2392.8,0.41793]
[1725446629798,0.41791,2393.0,2392.8,0.41793]
[1725446630692,1.42479,2393.2,2392.7,3.2078]
[1725446630899,4.1792,2393.0,2392.4,3.2078]
[1725446631202,0.41794,2392.8,2392.6,0.41796]
[1725446631391,1.04485,2392.8,2392.2,0.00627117]
[1725446631599,3.62582,2392.3,2392.2,0.00627117]
[1725446631800,3.2078,2392.3,2391.6,3.61]
[1725446631999,0.41807,2392.1,2391.7,0.41812]
[1725446632299,0.41807,2392.1,2391.4,8.0278]
[1725446632692,0.3722,2392.2,2391.4,8.0278]
[1725446632995,0.00627117,2392.0,2391.7,3.62592]
[1725446633197,0.00627117,2392.0,2391.5,0.00627117]
[1725446633198,0.4181,2391.9,2391.5,0.42442117]
[1725446633389,0.00627117,2392.0,2391.5,0.00627117]
[1725446633589,0.41812,2391.8,2391.5,0.00627117]
[1725446634199,3.63215117,2392.0,2391.6,0.41815]
[1725446634504,3.21407117,2392.0,2391.5,0.00627117]
[1725446634690,0.4181,2391.9,2391.6,0.41815]
[1725446634896,0.4181,2391.9,2391.5,0.42442117]
[1725446635093,0.4181,2391.9,2391.6,0.41815]
[1725446635299,3.99376117,2392.0,2391.7,0.41812]
[1725446635492,0.36787117,2392.0,2391.6,0.41814]
[1725446635701,0.78595117,2392.0,2391.7,0.41813]
[1725446636106,0.4181,2391.9,2391.6,0.41814]
[1725446636494,0.36787117,2392.0,2391.6,0.41815]
[1725446636699,0.4181,2391.9,2391.6,0.41815]
[1725446637004,0.41811,2391.8,2391.5,0.42442117]
[1725446637204,0.41814,2391.7,2391.5,0.00627117]
[1725446638298,0.78885,2391.6,2391.5,0.00627117]
[1725446638503,0.3707,2391.6,2391.5,0.00627117]
[1725446638707,0.3707,2391.6,2391.5,0.42443117]
[1725446638897,0.73857117,2392.0,2391.7,0.41812]
[1725446639096,0.4181,2391.9,2391.7,0.41812]
[1725446639303,0.41811,2391.8,2391.6,0.41813]
[1725446639506,0.00627117,2392.0,2391.9,0.41809]
[1725446641299,0.00627117,2392.0,2391.7,3.2078]
[1725446641604,0.42435117,2392.0,2391.8,0.4181]
[1725446641804,0.42435117,2392.0,2391.7,3.2078]
[1725446641805,0.00627117,2392.0,2391.9,0.41809]
[1725446642104,0.00627117,2392.0,2391.9,1.46333]
[1725446642308,0.00627117,2392.0,2391.9,0.41809]
[1725446644608,6.82,2392.7,2392.5,0.41799]
[1725446644921,0.41794,2392.8,2392.7,0.41795]
[1725446645298,0.7666,2393.0,2392.5,3.2078]
[1725446645509,1.81138,2393.0,2392.6,0.41796]
[1725446645811,0.77287117,2393.0,2392.5,0.41798]
[1725446646008,0.77287117,2393.0,2392.2,3.2078]
[1725446646009,0.41799,2392.5,2392.4,0.418]
[1725446646203,4.1792,2392.9,2392.8,0.41793]
[1725446646204,0.41792,2392.9,2392.8,0.41793]
[1725446646401,0.77287117,2393.0,2392.3,5.86507]
[1725446646608,0.41795,2392.8,2392.6,0.41796]
[1725446647007,0.41795,2392.8,2392.7,0.41795]
[1725446647214,1.81765117,2393.0,2392.7,0.41794]
[1725446647215,0.41793,2392.9,2392.7,0.41794]
[1725446647510,0.77287117,2393.0,2392.9,0.41792]
[1725446647906,0.00627117,2393.0,2392.9,0.41792]
[1725446648807,4.53482,2393.5,2393.0,1.04473]
[1725446649013,0.41787,2393.2,2392.9,0.3695]
[1725446649214,1.04459,2393.4,2393.3,0.41785]
[1725446649215,0.41784,2393.4,2393.3,0.41785]
[1725446649404,1.04463,2393.3,2392.8,8.0278]
[1725446649709,0.41784,2393.4,2393.3,0.41785]
[1725446650106,0.41783,2393.4,2393.3,0.41783]
[1725446650307,4.117,2393.5,2393.3,0.41783]
[1725446650612,4.117,2393.5,2393.4,0.41783]
[1725446651117,4.117,2393.5,2393.3,0.41784]
[1725446651300,4.53482,2393.5,2393.4,0.41783]
[1725446651706,4.117,2393.5,2393.4,0.41783]
[1725446652204,4.53481,2393.5,2393.4,0.41783]
[1725446652409,4.117,2393.5,2393.4,0.41783]
[1725446652808,0.00627117,2393.6,2393.5,0.41781]
[1725446653812,0.00627117,2393.6,2393.5,0.78621]
[1725446654010,0.00627117,2393.6,2393.5,1.83075]
[1725446655715,0.00627117,2393.6,2393.5,0.78621]
[1725446656518,0.00627117,2393.6,2393.4,3.2078]
[1725446656519,0.41781,2393.5,2393.4,3.2078]
[1725446656813,0.00627117,2393.6,2393.1,5.1902]
[1725446656814,0.00627117,2393.6,2393.5,0.41781]
[1725446657319,0.41784,2393.4,2393.3,0.41784]
[1725446657508,0.00627117,2393.6,2393.1,3.9555]
[1725446657708,0.41783,2393.5,2393.3,0.41784]
[1725446657919,0.41781,2393.5,2393.3,0.41784]
[1725446658120,0.41784,2393.4,2393.3,0.41785]
[1725446658421,0.41783,2393.5,2393.4,0.41783]
[1725446658719,1.05079117,2393.6,2393.1,5.0002]
[1725446658720,0.42408117,2393.6,2393.1,5.0002]
[1725446658921,0.42408117,2393.6,2393.4,0.41782]
[1725446659122,0.41781,2393.5,2393.4,0.41782]
[1725446659325,0.42408117,2393.6,2393.5,0.41781]
[1725446659525,0.42407117,2393.6,2393.5,0.41781]
[1725446659817,0.41782,2393.5,2393.4,0.41782]
[1725446660620,0.41783,2393.4,2393.3,0.41784]
[1725446660806,1.04456,2393.5,2393.1,3.9555]
[1725446661010,0.41787,2393.2,2393.1,4.37337]
[1725446661422,0.41786,2393.3,2393.1,4.37337]
[1725446661812,0.41787,2393.2,2393.1,3.9555]
[1725446662220,0.41787,2393.2,2393.1,3.2078]
[1725446662719,0.4179,2393.0,2392.8,0.3933]
[1725446662921,0.41794,2392.8,2392.7,0.37867117]
[1725446663116,0.41794,2392.8,2392.7,0.00627117]
[1725446663417,5.64199,2392.8,2392.7,0.00627117]
[1725446663820,4.59714,2392.8,2392.7,0.00627117]
[1725446664020,4.1792,2392.8,2392.7,0.00627117]
[1725446664224,4.1792,2392.8,2392.7,0.42422117]
[1725446664435,4.59714,2392.8,2392.7,0.00627117]
[1725446665622,0.41793,2392.9,2392.7,0.42422117]
[1725446666124,3.2078,2393.0,2392.9,0.41792]
[1725446666826,0.3652,2393.3,2392.8,1.43105]
[1725446667015,0.41785,2393.3,2393.1,0.41787]
[1725446667619,4.53484,2393.4,2393.2,0.41787]
[1725446668220,0.41785,2393.3,2392.8,1.79545]
[1725446668416,4.117,2393.4,2393.2,0.41786]
[1725446668820,0.41785,2393.3,2393.2,0.41786]
[1725446669020,4.53484,2393.4,2393.2,0.41786]
[1725446669220,0.41785,2393.3,2393.2,0.41786]
[1725446669416,0.41785,2393.3,2393.1,0.41787]
[1725446669623,0.41785,2393.3,2393.2,0.41787]
[1725446669826,4.53484,2393.4,2392.9,1.04479]
[1725446670127,4.53484,2393.4,2393.3,0.41785]
[1725446670327,0.41784,2393.4,2393.2,0.41785]
[1725446670727,0.41782,2393.5,2393.3,0.41785]
[1725446670933,0.41783,2393.4,2393.2,0.41785]
[1725446671232,0.41783,2393.4,2393.2,0.41786]
[1725446671434,1.04455,2393.5,2393.0,3.2078]
[1725446671625,0.41785,2393.4,2393.2,0.41786]
[1725446671826,0.41785,2393.3,2393.2,0.41786]
[1725446672225,3.97167117,2393.6,2393.3,0.41784]
[1725446672424,0.41786,2393.3,2393.2,0.41786]
[1725446672827,0.41784,2393.4,2393.3,0.41785]
[1725446673421,1.80838117,2393.6,2393.0,4.25255]
[1725446673725,0.41785,2393.3,2393.2,0.41785]
[1725446674035,0.41786,2393.3,2393.2,0.41786]
[1725446675125,0.41784,2393.4,2393.3,0.41784]
[1725446675320,0.41785,2393.3,2393.2,0.41785]
[1725446675573,0.41784,2393.4,2393.3,0.41784]
[1725446675730,0.41783,2393.5,2393.4,0.41782]
[1725446677630,0.41783,2393.5,2393.3,0.41784]
[1725446677631,0.41785,2393.4,2393.3,0.41784]
[1725446678836,4.59625,2393.4,2393.3,0.41784]
[1725446679433,0.41785,2393.4,2393.3,0.41784]
[1725446679728,0.41788,2393.2,2393.1,0.41787]
[1725446681641,1.4626,2393.1,2393.0,3.2078]
[1725446681825,2.50732,2393.1,2393.0,3.2078]
[1725446682027,2.50732,2393.1,2392.7,0.00627117]
[1725446682028,0.41794,2392.8,2392.7,0.00627117]
[1725446682335,1.46279,2392.8,2392.7,0.00627117]
[1725446682725,0.41794,2392.8,2392.7,0.42422117]
[1725446683940,1.46279,2392.8,2392.7,0.00627117]
[1725446684337,1.46279,2392.8,2392.7,0.42422117]
[1725446684939,0.41794,2392.8,2392.7,0.42422117]
[1725446685233,3.2078,2393.1,2392.7,8.84035117]
[1725446685434,4.53488,2393.2,2393.1,0.41788]
[1725446685631,0.4179,2393.1,2393.0,0.41789]
[1725446685828,0.4179,2393.1,2393.0,0.78829]
[1725446686229,4.53488,2393.2,2393.1,0.41788]
[1725446687435,0.41788,2393.1,2393.0,0.78829]
[1725446687835,3.2078,2393.3,2393.2,0.41787]
[1725446688040,0.00627117,2393.6,2393.5,2.50689]
[1725446688236,5.16121,2394.3,2394.0,0.41773]
[1725446688237,0.209,2394.2,2394.0,0.41773]
[1725446688544,0.41772,2394.1,2393.9,0.41773]
[1725446688837,1.04424,2394.2,2393.6,0.7322]
[1725446689136,0.41777,2393.8,2393.7,0.00627117]
[1725446689532,0.41775,2393.9,2393.7,0.42404117]
[1725446690136,0.41775,2393.9,2393.7,0.00627117]
[1725446690137,0.41776,2393.8,2393.7,0.00627117]
[1725446691135,0.41776,2393.8,2393.7,0.42405117]
[1725446691633,0.41776,2393.8,2393.7,0.00627117]
[1725446691839,0.41776,2393.8,2393.7,0.42405117]
[1725446692035,0.41776,2393.9,2393.7,0.42405117]
[1725446692435,0.41776,2393.9,2393.7,0.00627117]
[1725446692636,0.41776,2393.9,2393.7,0.42403117]
[1725446692941,0.41776,2393.8,2393.7,0.42403117]
[1725446694130,1.04434,2394.0,2393.7,0.00627117]
[1725446694336,0.41776,2393.9,2393.8,0.41776]
[1725446694943,0.41774,2394.0,2393.8,0.41776]
[1725446695139,0.41774,2393.9,2393.8,0.41776]
[1725446695343,1.05056117,2394.1,2393.7,0.00627117]
[1725446695344,0.00627117,2394.1,2394.0,0.41773]
[1725446695838,0.41773,2394.0,2393.9,0.41773]
[1725446696048,0.41774,2393.9,2393.8,3.62556]
[1725446696451,0.41774,2393.9,2393.8,3.2078]
[1725446697539,1.46211,2393.9,2393.8,3.2078]
[1725446697947,1.46217,2393.8,2393.7,0.00627117]
[1725446698840,0.41776,2393.8,2393.7,0.00627117]
[1725446699043,3.21407117,2394.1,2393.8,0.41775]
[1725446699044,0.41775,2393.9,2393.8,0.41775]
[1725446699748,0.00627117,2394.1,2394.0,0.41773]
[1725446700645,0.00627117,2394.1,2393.9,0.41773]
[1725446700940,0.41776,2393.8,2393.7,0.42403117]
[1725446701743,0.41776,2393.9,2393.8,0.41776]
[1725446703245,0.41776,2393.9,2393.7,0.42404117]
[1725446703444,0.41776,2393.8,2393.7,0.42404117]
[1725446703744,1.05058117,2394.1,2393.7,0.42404117]
[1725446703745,0.41776,2393.9,2393.7,0.42404117]
[1725446704149,0.41776,2393.9,2393.8,0.41776]
[1725446705449,0.41776,2393.8,2393.7,0.00627117]
[1725446705750,1.46217,2393.8,2393.7,0.00627117]
[1725446706043,0.41776,2393.8,2393.7,0.00627117]
[1725446706247,0.41776,2393.8,2393.7,0.42405117]
[1725446707148,0.41774,2394.0,2393.7,0.00627117]
[1725446707352,0.41776,2393.9,2393.8,0.41776]
[1725446707746,0.41776,2393.8,2393.7,0.42404117]
[1725446707943,2.50658,2393.8,2393.7,0.00627117]
[1725446708144,0.41785,2393.3,2393.2,0.209]
[1725446708348,0.41792,2392.9,2392.8,3.2078]
[1725446708653,0.41787,2393.2,2393.0,0.41789]
[1725446708851,0.41785,2393.3,2393.1,0.41787]
[1725446709044,0.41787,2393.2,2393.0,0.41789]
[1725446710447,0.41786,2393.3,2393.1,0.41788]
[1725446710839,0.41781,2393.6,2393.4,0.41783]
[1725446711042,4.117,2393.7,2393.2,5.01477]
[1725446711245,0.41778,2393.7,2393.5,0.4178]
[1725446711450,0.41778,2393.7,2393.6,0.7779]
[1725446711654,0.41777,2393.8,2393.6,0.7779]
[1725446711845,0.41778,2393.7,2393.6,0.3601]
[1725446712045,0.41776,2393.9,2393.7,0.41778]
[1725446712252,0.41777,2393.8,2393.6,0.77789]
[1725446713150,8.36914,2394.0,2393.6,0.77789]
[1725446713855,0.41778,2393.8,2393.6,0.77789]
[1725446715557,0.41775,2393.9,2393.7,0.41778]
[1725446716062,4.117,2394.0,2393.6,3.9701]
[1725446716248,0.00627117,2394.1,2394.0,0.41773]
[1725446716747,0.00627117,2394.1,2394.0,5.07205]
[1725446716945,0.00627117,2394.1,2394.0,12.45665]
[1725446717148,0.00627117,2394.1,2394.0,13.21145]
[1725446717449,0.00627117,2394.1,2394.0,13.56765]
[1725446718557,0.00627117,2394.1,2394.0,14.61197]
[1725446718956,0.00627117,2394.1,2394.0,13.56765]
[1725446720351,0.41762,2394.7,2394.5,0.41763]
[1725446720551,0.41762,2394.7,2394.4,3.61]
[1725446720758,0.41762,2394.7,2394.5,0.41763]
[1725446720948,0.41762,2394.7,2394.5,0.80253]
[1725446721151,0.41762,2394.7,2394.6,0.41762]
[1725446721548,0.41762,2394.7,2394.5,0.80253]
[1725446721758,4.48707117,2394.9,2394.7,0.41759]
[1725446721946,0.00627117,2394.9,2394.8,0.41759]
[1725446722150,0.00627117,2394.9,2394.8,4.02759]
[1725446722756,0.00627117,2394.9,2394.8,0.41759]
[1725446723359,0.42384117,2394.9,2394.8,0.41759]
[1725446723655,0.00627117,2394.9,2394.8,0.41759]
[1725446724063,0.00627117,2394.9,2394.8,4.02759]
[1725446726254,0.00627117,2394.9,2394.8,9.24757]
[1725446726458,0.097,2395.5,2394.8,13.786]
[1725446726771,0.097,2395.8,2395.7,0.41743]
[1725446727066,0.112,2395.9,2395.7,7.23523]
[1725446727067,0.4174,2395.9,2395.7,7.23523]
[1725446727260,0.41741,2395.8,2395.6,0.78904]
[1725446727564,1.04978117,2395.9,2395.6,0.3716]
[1725446727868,0.41745,2395.6,2395.5,0.00627117]
[1725446728367,4.59185,2395.6,2395.5,0.00627117]
[1725446728963,4.25759117,2395.9,2395.5,0.00627117]
[1725446729164,0.41745,2395.7,2395.5,0.00627117]
[1725446729556,4.59185,2395.7,2395.5,0.42373117]
[1725446729758,0.41745,2395.7,2395.5,0.42373117]
[1725446729962,4.59185,2395.7,2395.5,0.42373117]
[1725446730163,0.41745,2395.7,2395.5,0.42373117]
[1725446730771,0.41745,2395.6,2395.5,0.00627117]
[1725446731159,4.59185,2395.6,2395.5,0.00627117]
[1725446731355,0.41745,2395.6,2395.5,0.00627117]
[1725446732366,4.59185,2395.6,2395.5,0.00627117]
[1725446732671,0.41745,2395.6,2395.5,0.00627117]
[1725446733262,0.41744,2395.7,2395.5,0.42373117]
[1725446733570,0.41745,2395.6,2395.5,0.00627117]
[1725446733769,0.42367117,2395.9,2395.5,3.61627117]
[1725446733960,0.00627117,2395.9,2395.6,3.2078]
[1725446734161,0.00627117,2395.9,2395.8,0.41741]
[1725446734664,0.42367117,2395.9,2395.6,4.35724]
[1725446734977,0.41743,2395.7,2395.6,3.9398]
[1725446735171,0.41743,2395.7,2395.6,0.732]
[1725446735567,0.41745,2395.6,2395.5,0.00627117]
[1725446736476,5.63548,2395.6,2395.5,0.00627117]
[1725446737670,0.41753,2395.1,2395.0,3.3048]
[1725446737870,0.41753,2395.1,2394.4,1.46168229]
[1725446737871,0.41754,2395.1,2394.9,0.41756]
[1725446738069,1.04377,2395.3,2394.9,0.41756]
[1725446738365,0.41755,2395.1,2394.9,0.41756]
[1725446738569,0.3605,2395.3,2394.8,1.04398]
[1725446738873,0.41751,2395.3,2395.1,0.41752]
[1725446739268,0.41755,2395.1,2394.9,0.78346]
[1725446739473,0.41755,2395.0,2394.9,0.78346]
[1725446739673,0.41757,2394.9,2394.8,0.00627117]
[1725446740473,5.6375,2394.9,2394.8,0.00627117]
[1725446740867,6.008,2394.9,2394.8,0.00627117]
[1725446742169,0.78966,2395.0,2394.8,0.00627117]
[1725446742365,0.41756,2395.0,2394.8,0.42385117]
[1725446742565,4.63981,2395.2,2394.9,0.41757]
[1725446742566,0.41755,2395.1,2394.9,0.41757]
[1725446742966,0.41755,2395.0,2394.9,0.41757]
[1725446743473,0.41755,2395.1,2394.9,0.41757]
[1725446743674,0.41755,2395.1,2395.0,0.41755]
[1725446744170,0.41752,2395.2,2395.1,0.41753]
[1725446745784,0.41752,2395.2,2394.8,0.00627117]
[1725446745785,0.41757,2394.9,2394.8,0.00627117]
[1725446746576,0.41754,2395.1,2395.0,0.41755]
[1725446746780,0.41754,2395.1,2394.9,0.41756]
[1725446747569,0.41755,2395.0,2394.9,0.41756]
[1725446748175,0.41755,2395.1,2395.0,0.41755]
[1725446748378,0.41755,2395.1,2394.8,0.00627117]
[1725446748379,0.41755,2395.0,2394.9,0.41756]
[1725446748879,0.78401,2395.3,2394.8,1.05024117]
[1725446749087,0.41753,2395.2,2395.1,0.41753]
[1725446749585,0.41752,2395.2,2395.1,0.41753]
[1725446749979,0.78401,2395.3,2395.2,0.41752]
[1725446750184,0.41751,2395.3,2395.2,0.41752]
[1725446750887,0.41752,2395.2,2395.1,0.41752]
[1725446751097,0.41753,2395.1,2395.0,7.62344]
[1725446751897,0.41753,2395.2,2395.1,0.41753]
[1725446752298,0.41749,2395.4,2395.3,0.41749]
[1725446752589,4.53448,2395.5,2395.4,0.41748]
[1725446753586,0.41748,2395.4,2395.3,0.4175]
[1725446753785,0.41748,2395.4,2395.3,0.41749]
[1725446754192,4.53448,2395.5,2395.4,0.41748]
[1725446754786,0.41749,2395.4,2395.3,0.41749]
[1725446755692,4.53448,2395.5,2395.4,0.41748]
[1725446755891,0.41748,2395.5,2395.4,0.41748]
[1725446756097,4.25139,2395.7,2395.2,4.6538]
[1725446756098,0.41746,2395.6,2395.5,0.41746]
[1725446756896,0.41747,2395.5,2395.4,0.41747]
[1725446757094,0.41748,2395.4,2395.3,0.41749]
[1725446757395,0.41748,2395.5,2395.4,0.41748]
[1725446757786,4.59188,2395.5,2395.4,0.41748]
[1725446758301,0.41746,2395.6,2395.5,0.41746]
[1725446758494,0.41745,2395.7,2395.6,0.41745]
[1725446758801,0.41744,2395.7,2395.6,0.41743]
[1725446758993,0.41745,2395.6,2395.5,0.7356]
[1725446760190,1.46108,2395.6,2395.5,0.7356]
[1725446760696,0.41745,2395.6,2395.5,0.7356]
[1725446760884,1.04363,2395.6,2395.3,3.6253]
[1725446761085,1.04359,2395.7,2395.2,3.61]
[1725446761086,0.4175,2395.3,2395.2,0.3912]
[1725446761283,1.04371,2395.4,2394.9,3.2078]
[1725446761490,1.04371,2395.4,2394.8,0.75247117]
[1725446761491,1.04376,2395.3,2394.8,0.75247117]
[1725446761690,0.41756,2395.0,2394.9,0.41757]
[1725446761992,0.41756,2395.0,2394.8,0.75247117]
[1725446761993,0.41757,2394.9,2394.8,1.17005117]
[1725446762596,0.41756,2395.0,2394.9,0.41756]
[1725446762996,0.41757,2394.9,2394.8,1.17005117]
[1725446763386,0.41757,2395.0,2394.9,0.41757]
[1725446763589,0.41757,2395.0,2394.8,0.75247117]
[1725446763590,0.41755,2395.1,2394.8,0.75247117]
[1725446763798,0.41752,2395.2,2395.1,0.41752]
[1725446764102,4.117,2395.3,2395.0,0.41755]
[1725446764400,0.41753,2395.1,2395.0,0.41755]
[1725446764904,0.41755,2395.0,2394.9,4.02756]
[1725446765604,0.41755,2395.0,2394.9,0.41756]
[1725446765995,0.41755,2395.1,2395.0,0.41755]
[1725446766697,0.41752,2395.2,2395.1,0.41752]
[1725446766898,0.41755,2395.1,2395.0,0.41754]
[1725446767495,5.16076,2395.3,2394.9,3.61]
[1725446767496,4.53451,2395.3,2395.2,0.41752]
[1725446767897,0.41751,2395.3,2395.2,0.41752]
[1725446769102,0.41749,2395.4,2395.3,0.41749]
[1725446769703,0.41751,2395.3,2395.2,0.41751]
[1725446770003,0.4175,2395.4,2395.3,0.41749]
[1725446770796,0.4175,2395.4,2395.3,0.78129]
[1725446771103,0.41748,2395.4,2395.3,0.78129]
[1725446771606,0.41748,2395.4,2395.3,0.3638]
[1725446771812,0.41752,2395.2,2395.1,0.41753]
[1725446772608,0.41751,2395.3,2395.2,0.4175]
[1725446773303,0.41753,2395.1,2395.0,4.02753]
[1725446775606,0.3824,2395.5,2395.0,3.61]
[1725446775816,0.42368117,2395.9,2395.8,0.41741]
[1725446776012,0.41741,2395.8,2395.7,4.02742]
[1725446776304,0.41741,2395.8,2395.7,0.41742]
[1725446776510,0.41744,2395.7,2395.6,0.41744]
[1725446778002,0.41742,2395.8,2395.7,0.41743]
[1725446778209,0.00627117,2395.9,2395.6,4.65362]
[1725446778412,0.00627117,2395.9,2395.8,0.41741]
[1725446778709,0.41743,2395.7,2395.6,4.02743]
[1725446779010,0.41742,2395.8,2395.7,0.41743]
[1725446779406,0.42368117,2395.9,2395.8,0.41741]
[1725446779811,0.41742,2395.8,2395.7,0.41742]
[1725446780113,0.42368117,2395.9,2395.8,0.41741]
[1725446780708,0.41742,2395.8,2395.7,0.41742]
[1725446782111,0.42367117,2395.9,2395.8,0.41741]
[1725446782413,0.00627117,2395.9,2395.8,0.41741]
[1725446783014,0.00627117,2395.9,2395.5,4.3087]
[1725446783316,0.41744,2395.7,2395.6,0.41744]
[1725446784014,0.41743,2395.8,2395.7,0.41743]
[1725446784220,0.00627117,2395.9,2395.8,0.41741]
[1725446785914,0.00627117,2395.9,2395.7,0.41742]
[1725446786212,0.41742,2395.8,2395.7,0.41742]
[1725446786414,0.41745,2395.6,2395.5,0.3547]
[1725446786711,0.4175,2395.3,2395.2,0.7527]
[1725446786918,0.41748,2395.5,2395.4,0.41748]
[1725446787317,4.59188,2395.5,2395.4,0.41748]
[1725446788111,4.1744,2395.5,2395.4,0.41748]
[1725446788318,4.117,2395.7,2395.5,0.41745]
[1725446788511,0.41745,2395.6,2395.5,0.41745]
[1725446788711,4.117,2395.7,2395.3,1.43316]
[1725446788920,0.41745,2395.6,2395.5,0.41745]
[1725446791118,0.4175,2395.3,2395.2,7.5705]
[1725446791416,0.4175,2395.3,2395.2,3.2078]
[1725446791417,1.46126,2395.3,2395.2,3.2078]
[1725446791721,0.41751,2395.3,2395.2,0.41751]
[1725446792111,1.04372,2395.4,2394.9,4.65393]
[1725446792112,0.41752,2395.2,2394.9,4.65393]
[1725446792312,0.41752,2395.2,2395.1,0.41752]
[1725446792812,0.41751,2395.3,2395.2,0.41751]
[1725446793525,0.41749,2395.4,2395.3,0.41748]
[1725446793717,0.41747,2395.5,2395.2,0.41752]
[1725446793916,0.41747,2395.5,2395.3,0.7485]
[1725446794715,4.53444,2395.7,2395.6,0.41745]
[1725446795216,0.00627117,2395.9,2395.7,0.41743]
[1725446795217,0.42368117,2395.9,2395.7,0.41743]
[1725446795416,0.42368117,2395.9,2395.7,0.41741]
[1725446795417,0.41742,2395.8,2395.7,0.41741]
[1725446795624,0.42368117,2395.9,2395.8,0.41741]